[Event "Titled Tuesday Blitz May 2 Early 2023"]
[White "Aggelis, Nikolaos"]
[Black "Fathy, Elameir"]
[WhiteFideId "4213220"]
[BlackFideId "10600396"]
[WhiteElo "2189"]
[BlackElo "2311"]
[Result "0-1"]
[Round "05"]
[TimeControl "180+2"]
[Date "2023.05.02"]
[WhiteClock "0:00:20"]
[BlackClock "0:00:15"]

1. c4 {[%clk 0:02:55]}  c6 {[%clk 0:03:00]} 2. g3 {[%clk 0:02:56]}  d5 {[%clk 0:03:00]} 3. Nf3 {[%clk 0:02:54]}  Nf6 {[%clk 0:03:01]} 4. Bg2 {[%clk 0:02:54]}  dxc4 {[%clk 0:03:01]} 5. O-O {[%clk 0:02:53]}  Nbd7 {[%clk 0:03:02]} 6. Na3 {[%clk 0:02:52]}  Nb6 {[%clk 0:03:01]} 7. Ne5 {[%clk 0:02:49]}  Qd4 {[%clk 0:02:49]} 8. Nf3 {[%clk 0:02:39]}  Qc5 {[%clk 0:02:46]} 9. d4 {[%clk 0:02:33]}  cxd3 {[%clk 0:02:45]} 10. Be3 {[%clk 0:02:33]}  Qd5 {[%clk 0:02:18]} 11. Nd4 {[%clk 0:02:28]}  Qd8 {[%clk 0:02:16]} 12. Rc1 {[%clk 0:02:20]}  e5 {[%clk 0:02:10]} 13. Nf3 {[%clk 0:02:20]}  e4 {[%clk 0:02:06]} 14. Nd2 {[%clk 0:02:16]}  Bxa3 {[%clk 0:01:48]} 15. bxa3 {[%clk 0:02:15]}  Bf5 {[%clk 0:01:45]} 16. exd3 {[%clk 0:02:09]}  exd3 {[%clk 0:01:46]} 17. Bc5 {[%clk 0:02:08]}  Qd7 {[%clk 0:01:19]} 18. Re1+ {[%clk 0:02:04]}  Be6 {[%clk 0:01:00]} 19. a4 {[%clk 0:02:04]}  Nbd5 {[%clk 0:00:48]} 20. a5 {[%clk 0:02:02]}  b6 {[%clk 0:00:47]} 21. Ba3 {[%clk 0:01:54]}  c5 {[%clk 0:00:43]} 22. Nc4 {[%clk 0:01:54]}  O-O {[%clk 0:00:42]} 23. Qxd3 {[%clk 0:01:51]}  Rad8 {[%clk 0:00:38]} 24. axb6 {[%clk 0:01:46]}  axb6 {[%clk 0:00:38]} 25. Rb1 {[%clk 0:01:43]}  Qc7 {[%clk 0:00:36]} 26. Qc2 {[%clk 0:01:21]}  Rfe8 {[%clk 0:00:35]} 27. Ne5 {[%clk 0:00:57]}  g6 {[%clk 0:00:27]} 28. Bb2 {[%clk 0:00:54]}  Bf5 {[%clk 0:00:27]} 29. Qb3 {[%clk 0:00:43]}  Bxb1 {[%clk 0:00:27]} 30. Rxb1 {[%clk 0:00:44]}  Rxe5 {[%clk 0:00:26]} 31. Bxe5 {[%clk 0:00:43]}  Qxe5 {[%clk 0:00:27]} 32. Rd1 {[%clk 0:00:44]}  Rd6 {[%clk 0:00:24]} 33. h3 {[%clk 0:00:43]}  Nb4 {[%clk 0:00:23]} 34. Rb1 {[%clk 0:00:40]}  Kg7 {[%clk 0:00:21]} 35. a3 {[%clk 0:00:40]}  Nd3 {[%clk 0:00:20]} 36. Rf1 {[%clk 0:00:35]}  h5 {[%clk 0:00:17]} 37. Qc4 {[%clk 0:00:35]}  Qd4 {[%clk 0:00:16]} 38. Qb5 {[%clk 0:00:33]}  Ne4 {[%clk 0:00:16]} 39. Bxe4 {[%clk 0:00:26]}  Qxe4 {[%clk 0:00:16]} 40. a4 {[%clk 0:00:27]}  Rf6 {[%clk 0:00:15]} 41. a5 {[%clk 0:00:25]}  bxa5 {[%clk 0:00:16]} 42. Qxa5 {[%clk 0:00:25]}  Qd4 {[%clk 0:00:15]} 43. Qd2 {[%clk 0:00:25]}  h4 {[%clk 0:00:16]} 44. g4 {[%clk 0:00:25]}  Ne5 {[%clk 0:00:13]} 45. Qxd4 {[%clk 0:00:21]}  cxd4 {[%clk 0:00:14]} 46. Kg2 {[%clk 0:00:22]}  d3 {[%clk 0:00:14]} 47. f4 {[%clk 0:00:22]}  Nc4 {[%clk 0:00:14]} 48. Kf3 {[%clk 0:00:20]}  Nd2+ {[%clk 0:00:14]} 49. Ke3 {[%clk 0:00:19]}  Nxf1+ {[%clk 0:00:15]} 50. Kxd3 {[%clk 0:00:20]}  Rxf4 {[%clk 0:00:15]} 0-1


[Site "https://www.chess.com"]

[Event "Titled Tuesday Blitz May 2 Early 2023"]
[White "Zaichenko, Daria"]
[Black "Devaev, Alexander"]
[WhiteFideId "4197453"]
[BlackFideId "4169395"]
[WhiteElo "2039"]
[BlackElo "2204"]
[Result "0-1"]
[Round "05"]
[TimeControl "180+2"]
[Date "2023.05.02"]
[WhiteClock "0:00:02"]
[BlackClock "0:00:01"]

1. e4 {[%clk 0:02:56]}  c6 {[%clk 0:02:59]} 2. d4 {[%clk 0:02:54]}  d5 {[%clk 0:03:00]} 3. Nc3 {[%clk 0:02:54]}  dxe4 {[%clk 0:03:00]} 4. Nxe4 {[%clk 0:02:55]}  Bf5 {[%clk 0:03:00]} 5. Ng3 {[%clk 0:02:54]}  Bg6 {[%clk 0:03:01]} 6. h4 {[%clk 0:02:55]}  h6 {[%clk 0:03:02]} 7. h5 {[%clk 0:02:55]}  Bh7 {[%clk 0:03:02]} 8. Nf3 {[%clk 0:02:56]}  Nd7 {[%clk 0:03:02]} 9. Bd3 {[%clk 0:02:55]}  Bxd3 {[%clk 0:03:03]} 10. Qxd3 {[%clk 0:02:55]}  Qc7 {[%clk 0:03:04]} 11. Bd2 {[%clk 0:02:54]}  e6 {[%clk 0:03:03]} 12. O-O-O {[%clk 0:02:52]}  Ngf6 {[%clk 0:03:04]} 13. Kb1 {[%clk 0:02:52]}  O-O-O {[%clk 0:03:04]} 14. c4 {[%clk 0:02:48]}  c5 {[%clk 0:03:05]} 15. Qc3 {[%clk 0:02:47]}  Bd6 {[%clk 0:02:56]} 16. Ne2 {[%clk 0:02:47]}  Ne4 {[%clk 0:02:38]} 17. Qb3 {[%clk 0:02:32]}  Nxf2 {[%clk 0:02:34]} 18. Rhf1 {[%clk 0:02:30]}  Nxd1 {[%clk 0:02:33]} 19. Rxd1 {[%clk 0:02:30]}  cxd4 {[%clk 0:02:27]} 20. Nexd4 {[%clk 0:02:28]}  Nc5 {[%clk 0:02:28]} 21. Qa3 {[%clk 0:02:25]}  a6 {[%clk 0:02:25]} 22. b4 {[%clk 0:02:07]}  Ne4 {[%clk 0:02:12]} 23. Be3 {[%clk 0:02:06]}  Be7 {[%clk 0:01:51]} 24. Rc1 {[%clk 0:01:59]}  Bg5 {[%clk 0:01:06]} 25. Nb5 {[%clk 0:01:51]}  Qe7 {[%clk 0:00:52]} 26. Nxg5 {[%clk 0:01:25]}  hxg5 {[%clk 0:00:52]} 27. Qa5 {[%clk 0:01:18]}  Nd2+ {[%clk 0:00:29]} 28. Ka1 {[%clk 0:01:07]}  Qf6+ {[%clk 0:00:26]} 29. Bd4 {[%clk 0:01:04]}  Qe7 {[%clk 0:00:18]} 30. Qb6 {[%clk 0:00:24]}  Rxd4 {[%clk 0:00:14]} 31. Na7+ {[%clk 0:00:21]}  Kd7 {[%clk 0:00:05]} 32. Qxd4+ {[%clk 0:00:18]}  Qd6 {[%clk 0:00:05]} 33. Qxg7 {[%clk 0:00:14]}  Rc8 {[%clk 0:00:04]} 34. Qxf7+ {[%clk 0:00:13]}  Kd8 {[%clk 0:00:03]} 35. Nxc8 {[%clk 0:00:11]}  Kxc8 {[%clk 0:00:03]} 36. Qg8+ {[%clk 0:00:08]}  Kc7 {[%clk 0:00:03]} 37. Qg7+ {[%clk 0:00:08]}  Kb8 {[%clk 0:00:04]} 38. Qc3 {[%clk 0:00:07]}  Ne4 {[%clk 0:00:02]} 39. Qc2 {[%clk 0:00:04]}  Qe5+ {[%clk 0:00:02]} 40. Qb2 {[%clk 0:00:04]}  Qf4 {[%clk 0:00:01]} 41. Rd1 {[%clk 0:00:02]}  g4 {[%clk 0:00:01]} 0-1


[Site "https://www.chess.com"]

[Event "Titled Tuesday Blitz May 2 Early 2023"]
[White "Garrido, Denis"]
[Black "Horak, Martin"]
[WhiteFideId "601217"]
[BlackFideId "367095"]
[WhiteElo "2205"]
[BlackElo "2091"]
[Result "0-1"]
[Round "05"]
[TimeControl "180+2"]
[Date "2023.05.02"]
[WhiteClock "0:00:46"]
[BlackClock "0:00:27"]

1. d4 {[%clk 0:02:47]}  Nf6 {[%clk 0:02:59]} 2. c4 {[%clk 0:02:46]}  e6 {[%clk 0:02:59]} 3. Nf3 {[%clk 0:02:46]}  d5 {[%clk 0:02:55]} 4. g3 {[%clk 0:02:46]}  dxc4 {[%clk 0:02:55]} 5. Bg2 {[%clk 0:02:46]}  Nc6 {[%clk 0:02:56]} 6. O-O {[%clk 0:02:46]}  Rb8 {[%clk 0:02:56]} 7. e3 {[%clk 0:02:45]}  b5 {[%clk 0:02:52]} 8. Qe2 {[%clk 0:02:45]}  Be7 {[%clk 0:02:50]} 9. b3 {[%clk 0:02:45]}  cxb3 {[%clk 0:02:49]} 10. axb3 {[%clk 0:02:46]}  O-O {[%clk 0:02:48]} 11. Bb2 {[%clk 0:02:46]}  a6 {[%clk 0:02:37]} 12. Rc1 {[%clk 0:02:46]}  Bb7 {[%clk 0:02:38]} 13. e4 {[%clk 0:02:20]}  Nb4 {[%clk 0:02:33]} 14. Nbd2 {[%clk 0:02:18]}  c5 {[%clk 0:02:30]} 15. dxc5 {[%clk 0:02:17]}  Nd3 {[%clk 0:02:30]} 16. Rc2 {[%clk 0:02:13]}  Nxb2 {[%clk 0:02:29]} 17. Rxb2 {[%clk 0:02:13]}  Bxc5 {[%clk 0:02:29]} 18. Rc2 {[%clk 0:02:09]}  Bb6 {[%clk 0:02:27]} 19. Rac1 {[%clk 0:02:04]}  Qe7 {[%clk 0:02:23]} 20. Ne5 {[%clk 0:02:03]}  Rfd8 {[%clk 0:02:22]} 21. Nc6 {[%clk 0:02:02]}  Bxc6 {[%clk 0:02:20]} 22. Rxc6 {[%clk 0:02:03]}  Qb4 {[%clk 0:02:15]} 23. Nf3 {[%clk 0:01:54]}  Nxe4 {[%clk 0:02:08]} 24. Ne5 {[%clk 0:01:50]}  Bxf2+ {[%clk 0:00:42]} 25. Kh1 {[%clk 0:01:46]}  Bxg3 {[%clk 0:00:42]} 26. Bxe4 {[%clk 0:01:32]}  Bxe5 {[%clk 0:00:42]} 27. Bxh7+ {[%clk 0:00:59]}  Kxh7 {[%clk 0:00:41]} 28. Qh5+ {[%clk 0:01:00]}  Kg8 {[%clk 0:00:40]} 29. Qxe5 {[%clk 0:01:00]}  Qxb3 {[%clk 0:00:32]} 30. R6c5 {[%clk 0:00:55]}  Qf3+ {[%clk 0:00:29]} 31. Kg1 {[%clk 0:00:54]}  Rd1+ {[%clk 0:00:29]} 32. Rxd1 {[%clk 0:00:54]}  Qxd1+ {[%clk 0:00:30]} 33. Kg2 {[%clk 0:00:55]}  Qd2+ {[%clk 0:00:29]} 34. Kh3 {[%clk 0:00:53]}  Rd8 {[%clk 0:00:27]} 35. Rc3 {[%clk 0:00:45]}  Rd3+ {[%clk 0:00:27]} 36. Rxd3 {[%clk 0:00:45]}  Qxd3+ {[%clk 0:00:28]} 37. Kg4 {[%clk 0:00:46]}  Qc4+ {[%clk 0:00:27]} 0-1


[Site "https://www.chess.com"]

[Event "Titled Tuesday Blitz May 2 Early 2023"]
[White "Adithya A Chullikkad"]
[Black "Zaitsev, Alexander"]
[WhiteFideId "45078734"]
[BlackFideId "4164490"]
[WhiteElo "1984"]
[BlackElo "2373"]
[Result "0-1"]
[Round "05"]
[TimeControl "180+2"]
[Date "2023.05.02"]
[WhiteClock "0:01:10"]
[BlackClock "0:00:16"]

1. d4 {[%clk 0:03:00]}  Nf6 {[%clk 0:02:56]} 2. c4 {[%clk 0:02:59]}  e6 {[%clk 0:02:56]} 3. Nc3 {[%clk 0:02:58]}  Bb4 {[%clk 0:02:57]} 4. Qc2 {[%clk 0:02:59]}  O-O {[%clk 0:02:56]} 5. a3 {[%clk 0:02:56]}  Bxc3+ {[%clk 0:02:56]} 6. Qxc3 {[%clk 0:02:55]}  Ne4 {[%clk 0:02:57]} 7. Qc2 {[%clk 0:02:54]}  f5 {[%clk 0:02:57]} 8. Nf3 {[%clk 0:02:53]}  b6 {[%clk 0:02:56]} 9. e3 {[%clk 0:02:52]}  Bb7 {[%clk 0:02:54]} 10. Bd3 {[%clk 0:02:52]}  Ng5 {[%clk 0:02:26]} 11. Nxg5 {[%clk 0:02:38]}  Qxg5 {[%clk 0:02:27]} 12. f3 {[%clk 0:02:37]}  Nc6 {[%clk 0:02:01]} 13. b4 {[%clk 0:02:33]}  Ne7 {[%clk 0:01:24]} 14. O-O {[%clk 0:02:28]}  Ng6 {[%clk 0:01:16]} 15. e4 {[%clk 0:02:22]}  f4 {[%clk 0:01:14]} 16. e5 {[%clk 0:02:02]}  Nh4 {[%clk 0:01:12]} 17. Bxh7+ {[%clk 0:01:57]}  Kh8 {[%clk 0:01:12]} 18. Be4 {[%clk 0:01:55]}  Bxe4 {[%clk 0:01:05]} 19. fxe4 {[%clk 0:01:56]}  Qg4 {[%clk 0:00:53]} 20. h3 {[%clk 0:01:19]}  Qg5 {[%clk 0:00:23]} 21. Qf2 {[%clk 0:01:14]}  Rf7 {[%clk 0:00:17]} 22. Bxf4 {[%clk 0:01:11]}  Rxf4 {[%clk 0:00:17]} 23. Qxf4 {[%clk 0:01:10]}  Qxg2# {[%clk 0:00:16]} 0-1


[Site "https://www.chess.com"]

[Event "Titled Tuesday Blitz May 2 Early 2023"]
[White "Smietanska, Wiktoria"]
[Black "Womacka, Mathias"]
[WhiteFideId "21869359"]
[BlackFideId "4611390"]
[WhiteElo "1995"]
[BlackElo "2377"]
[Result "0-1"]
[Round "05"]
[TimeControl "180+2"]
[Date "2023.05.02"]
[WhiteClock "0:00:02"]
[BlackClock "0:00:08"]

1. c4 {[%clk 0:02:55]}  c5 {[%clk 0:02:59]} 2. Nf3 {[%clk 0:02:54]}  Nf6 {[%clk 0:02:59]} 3. Nc3 {[%clk 0:02:47]}  e6 {[%clk 0:02:58]} 4. d4 {[%clk 0:02:45]}  cxd4 {[%clk 0:02:57]} 5. Nxd4 {[%clk 0:02:46]}  Bb4 {[%clk 0:02:56]} 6. Qc2 {[%clk 0:02:42]}  Nc6 {[%clk 0:02:52]} 7. Nxc6 {[%clk 0:02:34]}  dxc6 {[%clk 0:02:51]} 8. Bg5 {[%clk 0:02:25]}  e5 {[%clk 0:02:36]} 9. e3 {[%clk 0:02:11]}  h6 {[%clk 0:02:26]} 10. Bh4 {[%clk 0:02:09]}  Be6 {[%clk 0:02:14]} 11. Be2 {[%clk 0:02:01]}  Qa5 {[%clk 0:02:01]} 12. O-O {[%clk 0:01:44]}  Bxc3 {[%clk 0:01:59]} 13. bxc3 {[%clk 0:01:38]}  Nd7 {[%clk 0:01:55]} 14. Rab1 {[%clk 0:01:30]}  Nc5 {[%clk 0:01:44]} 15. f4 {[%clk 0:01:09]}  exf4 {[%clk 0:01:37]} 16. exf4 {[%clk 0:01:08]}  O-O {[%clk 0:01:31]} 17. f5 {[%clk 0:01:02]}  Bd7 {[%clk 0:01:24]} 18. f6 {[%clk 0:01:00]}  g6 {[%clk 0:01:21]} 19. Qd2 {[%clk 0:00:51]}  Kh7 {[%clk 0:01:20]} 20. Bf2 {[%clk 0:00:47]}  Rad8 {[%clk 0:01:16]} 21. Bd4 {[%clk 0:00:39]}  Bf5 {[%clk 0:01:05]} 22. Rbd1 {[%clk 0:00:19]}  Ne6 {[%clk 0:00:58]} 23. Qe3 {[%clk 0:00:14]}  Nxd4 {[%clk 0:00:46]} 24. cxd4 {[%clk 0:00:12]}  Rfe8 {[%clk 0:00:46]} 25. Qf3 {[%clk 0:00:03]}  Re6 {[%clk 0:00:36]} 26. h4 {[%clk 0:00:03]}  h5 {[%clk 0:00:30]} 27. Bd3 {[%clk 0:00:03]}  Rxf6 {[%clk 0:00:26]} 28. Bxf5 {[%clk 0:00:03]}  Rxf5 {[%clk 0:00:26]} 29. Qe3 {[%clk 0:00:03]}  Rxf1+ {[%clk 0:00:17]} 30. Rxf1 {[%clk 0:00:04]}  Qc7 {[%clk 0:00:17]} 31. Qf3 {[%clk 0:00:03]}  Kg8 {[%clk 0:00:15]} 32. Qe4 {[%clk 0:00:03]}  Qd7 {[%clk 0:00:14]} 33. Rf4 {[%clk 0:00:02]}  Re8 {[%clk 0:00:14]} 34. Qf3 {[%clk 0:00:02]}  Qe6 {[%clk 0:00:13]} 35. c5 {[%clk 0:00:02]}  Qe3+ {[%clk 0:00:11]} 36. Qxe3 {[%clk 0:00:01]}  Rxe3 {[%clk 0:00:12]} 37. Kf2 {[%clk 0:00:02]}  Ra3 {[%clk 0:00:12]} 38. Re4 {[%clk 0:00:02]}  Rxa2+ {[%clk 0:00:10]} 39. Kf3 {[%clk 0:00:02]}  Kf8 {[%clk 0:00:10]} 40. Re5 {[%clk 0:00:02]}  Rd2 {[%clk 0:00:09]} 41. Ke3 {[%clk 0:00:02]}  Rd1 {[%clk 0:00:09]} 42. Ke4 {[%clk 0:00:01]}  Re1+ {[%clk 0:00:09]} 43. Kf4 {[%clk 0:00:02]}  Rxe5 {[%clk 0:00:09]} 44. Kxe5 {[%clk 0:00:02]}  Ke7 {[%clk 0:00:09]} 45. g3 {[%clk 0:00:02]}  f6+ {[%clk 0:00:09]} 46. Ke4 {[%clk 0:00:02]}  Ke6 {[%clk 0:00:09]} 47. Ke3 {[%clk 0:00:02]}  Kd5 {[%clk 0:00:09]} 48. Kd3 {[%clk 0:00:02]}  a5 {[%clk 0:00:09]} 49. Kc3 {[%clk 0:00:02]}  g5 {[%clk 0:00:10]} 50. g4 {[%clk 0:00:01]}  gxh4 {[%clk 0:00:09]} 51. gxh5 {[%clk 0:00:01]}  h3 {[%clk 0:00:08]} 52. h6 {[%clk 0:00:02]}  h2 {[%clk 0:00:08]} 0-1


[Site "https://www.chess.com"]

[Event "Titled Tuesday Blitz May 2 Early 2023"]
[White "Koridze, Lile"]
[Black "Levitan, Caleb Levi"]
[WhiteFideId "13612514"]
[BlackFideId "14332620"]
[WhiteElo "2047"]
[BlackElo "1963"]
[Result "0-1"]
[Round "05"]
[TimeControl "180+2"]
[Date "2023.05.02"]
[WhiteClock "0:00:13"]
[BlackClock "0:01:51"]

1. d4 {[%clk 0:03:00]}  d5 {[%clk 0:02:58]} 2. c4 {[%clk 0:03:01]}  e6 {[%clk 0:02:58]} 3. Nf3 {[%clk 0:03:01]}  Nf6 {[%clk 0:02:57]} 4. g3 {[%clk 0:03:01]}  dxc4 {[%clk 0:02:56]} 5. Bg2 {[%clk 0:03:01]}  Bb4+ {[%clk 0:02:56]} 6. Bd2 {[%clk 0:03:01]}  c5 {[%clk 0:02:56]} 7. Bxb4 {[%clk 0:03:00]}  cxb4 {[%clk 0:02:57]} 8. O-O {[%clk 0:03:01]}  O-O {[%clk 0:02:53]} 9. a3 {[%clk 0:02:53]}  b5 {[%clk 0:02:51]} 10. axb4 {[%clk 0:00:55]}  Bb7 {[%clk 0:02:46]} 11. Nc3 {[%clk 0:00:52]}  a6 {[%clk 0:02:38]} 12. Ne5 {[%clk 0:00:40]}  Bxg2 {[%clk 0:02:35]} 13. Kxg2 {[%clk 0:00:40]}  Nbd7 {[%clk 0:02:35]} 14. Nf3 {[%clk 0:00:31]}  Nb6 {[%clk 0:02:28]} 15. b3 {[%clk 0:00:30]}  Qe7 {[%clk 0:02:21]} 16. bxc4 {[%clk 0:00:30]}  Nxc4 {[%clk 0:02:21]} 17. Qb3 {[%clk 0:00:28]}  Rfc8 {[%clk 0:02:17]} 18. Rfb1 {[%clk 0:00:17]}  Qb7 {[%clk 0:02:07]} 19. e3 {[%clk 0:00:15]}  Nd2 {[%clk 0:02:00]} 20. Qd1 {[%clk 0:00:13]}  Nxf3 {[%clk 0:01:51]} 0-1


[Site "https://www.chess.com"]

[Event "Titled Tuesday Blitz May 2 Early 2023"]
[White "Clawitter, Craig"]
[Black "Golubev, Mikhail"]
[WhiteFideId "2023105"]
[BlackFideId "14100983"]
[WhiteElo "2050"]
[BlackElo "2374"]
[Result "1/2-1/2"]
[Round "05"]
[TimeControl "180+2"]
[Date "2023.05.02"]
[WhiteClock "0:00:08"]
[BlackClock "0:00:04"]

1. e4 {[%clk 0:02:55]}  g6 {[%clk 0:03:00]} 2. d4 {[%clk 0:02:55]}  Bg7 {[%clk 0:03:00]} 3. Nc3 {[%clk 0:02:56]}  c6 {[%clk 0:02:59]} 4. Be3 {[%clk 0:02:48]}  d5 {[%clk 0:02:55]} 5. Qd2 {[%clk 0:02:48]}  dxe4 {[%clk 0:02:32]} 6. Nxe4 {[%clk 0:02:49]}  Nd7 {[%clk 0:02:32]} 7. Nf3 {[%clk 0:02:43]}  Ngf6 {[%clk 0:02:30]} 8. Nxf6+ {[%clk 0:02:43]}  Nxf6 {[%clk 0:02:30]} 9. Bh6 {[%clk 0:02:41]}  Ne4 {[%clk 0:02:18]} 10. Qf4 {[%clk 0:02:26]}  Qa5+ {[%clk 0:01:58]} 11. c3 {[%clk 0:02:25]}  Bxh6 {[%clk 0:01:52]} 12. Qxh6 {[%clk 0:02:25]}  Bf5 {[%clk 0:01:36]} 13. Bd3 {[%clk 0:02:15]}  Nxc3 {[%clk 0:01:24]} 14. Bxf5 {[%clk 0:02:00]}  Ne4+ {[%clk 0:01:13]} 15. Kf1 {[%clk 0:01:55]}  gxf5 {[%clk 0:01:00]} 16. Ne5 {[%clk 0:01:34]}  Qb5+ {[%clk 0:00:51]} 17. Kg1 {[%clk 0:01:33]}  Qxb2 {[%clk 0:00:43]} 18. Rf1 {[%clk 0:01:17]}  Qxd4 {[%clk 0:00:22]} 19. Qf4 {[%clk 0:01:00]}  e6 {[%clk 0:00:17]} 20. h4 {[%clk 0:00:56]}  Rg8 {[%clk 0:00:15]} 21. Rh3 {[%clk 0:00:54]}  O-O-O {[%clk 0:00:12]} 22. Rd3 {[%clk 0:00:50]}  Qb6 {[%clk 0:00:10]} 23. Nc4 {[%clk 0:00:39]}  Qc7 {[%clk 0:00:08]} 24. Rxd8+ {[%clk 0:00:29]}  Rxd8 {[%clk 0:00:07]} 25. Qe3 {[%clk 0:00:29]}  Kb8 {[%clk 0:00:05]} 26. Rb1 {[%clk 0:00:27]}  Ka8 {[%clk 0:00:04]} 27. Qa3 {[%clk 0:00:24]}  a6 {[%clk 0:00:04]} 28. f3 {[%clk 0:00:18]}  Nd6 {[%clk 0:00:03]} 29. Nb6+ {[%clk 0:00:15]}  Ka7 {[%clk 0:00:03]} 30. Qc5 {[%clk 0:00:14]}  Kb8 {[%clk 0:00:03]} 31. Rd1 {[%clk 0:00:12]}  Nc8 {[%clk 0:00:04]} 32. Rxd8 {[%clk 0:00:11]}  Qxd8 {[%clk 0:00:04]} 33. Nc4 {[%clk 0:00:10]}  Qc7 {[%clk 0:00:03]} 34. h5 {[%clk 0:00:09]}  b6 {[%clk 0:00:03]} 35. Qd4 {[%clk 0:00:08]}  Kb7 {[%clk 0:00:03]} 36. Qg7 {[%clk 0:00:08]}  b5 {[%clk 0:00:04]} 37. Ne5 {[%clk 0:00:08]}  Nd6 {[%clk 0:00:04]} 38. h6 {[%clk 0:00:07]}  Kb6 {[%clk 0:00:03]} 39. Qxh7 {[%clk 0:00:07]}  Ne4 {[%clk 0:00:02]} 40. fxe4 {[%clk 0:00:06]}  Qxe5 {[%clk 0:00:03]} 41. Qg7 {[%clk 0:00:06]}  Qxe4 {[%clk 0:00:02]} 42. h7 {[%clk 0:00:06]}  Qe1+ {[%clk 0:00:03]} 43. Kh2 {[%clk 0:00:06]}  Qh4+ {[%clk 0:00:03]} 44. Kg1 {[%clk 0:00:07]}  Qe1+ {[%clk 0:00:04]} 45. Kh2 {[%clk 0:00:07]}  Qh4+ {[%clk 0:00:04]} 46. Kg1 {[%clk 0:00:08]}  Qe1+ {[%clk 0:00:04]} 1/2-1/2


[Site "https://www.chess.com"]

[Event "Titled Tuesday Blitz May 2 Early 2023"]
[White "Ciuffoletti, Paolo"]
[Black "Garakov, Mikhael"]
[WhiteFideId "807630"]
[BlackFideId "4169034"]
[WhiteElo "2143"]
[BlackElo "2347"]
[Result "0-1"]
[Round "05"]
[TimeControl "180+2"]
[Date "2023.05.02"]
[WhiteClock "0:00:01"]
[BlackClock "0:00:33"]

1. e4 {[%clk 0:03:00]}  c5 {[%clk 0:02:58]} 2. d4 {[%clk 0:03:00]}  cxd4 {[%clk 0:02:57]} 3. c3 {[%clk 0:03:00]}  d3 {[%clk 0:02:58]} 4. Bxd3 {[%clk 0:03:00]}  g6 {[%clk 0:02:58]} 5. c4 {[%clk 0:03:00]}  Bg7 {[%clk 0:02:59]} 6. Nc3 {[%clk 0:03:00]}  Nc6 {[%clk 0:02:59]} 7. Nf3 {[%clk 0:03:00]}  d6 {[%clk 0:03:00]} 8. h3 {[%clk 0:02:59]}  Nf6 {[%clk 0:02:58]} 9. O-O {[%clk 0:02:59]}  O-O {[%clk 0:02:58]} 10. Be3 {[%clk 0:02:54]}  b6 {[%clk 0:02:55]} 11. Qd2 {[%clk 0:02:51]}  Bb7 {[%clk 0:02:51]} 12. Bh6 {[%clk 0:02:50]}  Rc8 {[%clk 0:02:46]} 13. b3 {[%clk 0:02:43]}  Nd7 {[%clk 0:02:37]} 14. Bxg7 {[%clk 0:02:18]}  Kxg7 {[%clk 0:02:36]} 15. Nd5 {[%clk 0:02:19]}  Nc5 {[%clk 0:02:33]} 16. Bc2 {[%clk 0:02:06]}  e6 {[%clk 0:02:28]} 17. Ne3 {[%clk 0:02:01]}  Qf6 {[%clk 0:02:19]} 18. Qxd6 {[%clk 0:01:43]}  Rfd8 {[%clk 0:02:17]} 19. Qg3 {[%clk 0:01:36]}  Nb4 {[%clk 0:01:53]} 20. e5 {[%clk 0:01:19]}  Qe7 {[%clk 0:01:52]} 21. Rad1 {[%clk 0:01:14]}  Be4 {[%clk 0:01:22]} 22. Bxe4 {[%clk 0:01:07]}  Nxe4 {[%clk 0:01:22]} 23. Qg4 {[%clk 0:00:37]}  Nc3 {[%clk 0:01:22]} 24. Rxd8 {[%clk 0:00:35]}  Rxd8 {[%clk 0:01:21]} 25. h4 {[%clk 0:00:26]}  h5 {[%clk 0:01:15]} 26. Qh3 {[%clk 0:00:20]}  Nd3 {[%clk 0:00:57]} 27. Kh2 {[%clk 0:00:18]}  Nf4 {[%clk 0:00:55]} 28. Qg3 {[%clk 0:00:17]}  Nce2 {[%clk 0:00:56]} 29. Qg5 {[%clk 0:00:16]}  Qxg5 {[%clk 0:00:49]} 30. hxg5 {[%clk 0:00:15]}  Nc3 {[%clk 0:00:47]} 31. g3 {[%clk 0:00:14]}  Nd3 {[%clk 0:00:46]} 32. Kg2 {[%clk 0:00:10]}  a5 {[%clk 0:00:43]} 33. a4 {[%clk 0:00:09]}  Nc5 {[%clk 0:00:41]} 34. Rc1 {[%clk 0:00:04]}  Na2 {[%clk 0:00:39]} 35. Rb1 {[%clk 0:00:03]}  Nb4 {[%clk 0:00:35]} 36. Ne1 {[%clk 0:00:02]}  Nc6 {[%clk 0:00:35]} 37. Kf3 {[%clk 0:00:02]}  Nxe5+ {[%clk 0:00:35]} 38. Ke2 {[%clk 0:00:01]}  Nc6 {[%clk 0:00:34]} 39. f4 {[%clk 0:00:02]}  Nd4+ {[%clk 0:00:34]} 40. Kf2 {[%clk 0:00:02]}  Ne4+ {[%clk 0:00:34]} 41. Kg2 {[%clk 0:00:01]}  Nc3 {[%clk 0:00:33]} 0-1


[Site "https://www.chess.com"]

[Event "Titled Tuesday Blitz May 2 Early 2023"]
[White "Osiecki, Stanislaw"]
[Black "Bouget, Alexandre"]
[WhiteFideId "1102990"]
[BlackFideId "681318"]
[WhiteElo "2088"]
[BlackElo "2182"]
[Result "0-1"]
[Round "05"]
[TimeControl "180+2"]
[Date "2023.05.02"]
[WhiteClock "0:00:37"]
[BlackClock "0:00:52"]

1. e4 {[%clk 0:03:00]}  e6 {[%clk 0:02:43]} 2. d4 {[%clk 0:02:59]}  d5 {[%clk 0:02:44]} 3. e5 {[%clk 0:03:00]}  c5 {[%clk 0:02:43]} 4. c3 {[%clk 0:03:01]}  Nc6 {[%clk 0:02:43]} 5. Nf3 {[%clk 0:03:01]}  Qb6 {[%clk 0:02:42]} 6. Be2 {[%clk 0:03:01]}  Bd7 {[%clk 0:02:42]} 7. dxc5 {[%clk 0:03:01]}  Bxc5 {[%clk 0:02:41]} 8. O-O {[%clk 0:03:02]}  f6 {[%clk 0:02:31]} 9. b4 {[%clk 0:02:58]}  Be7 {[%clk 0:02:29]} 10. Be3 {[%clk 0:02:58]}  Qc7 {[%clk 0:02:29]} 11. exf6 {[%clk 0:02:58]}  Nxf6 {[%clk 0:02:29]} 12. b5 {[%clk 0:02:58]}  Na5 {[%clk 0:02:25]} 13. Nd4 {[%clk 0:02:52]}  Nc4 {[%clk 0:02:23]} 14. Bxc4 {[%clk 0:02:51]}  Qxc4 {[%clk 0:02:19]} 15. a4 {[%clk 0:02:32]}  e5 {[%clk 0:02:15]} 16. Nf3 {[%clk 0:02:29]}  Qc7 {[%clk 0:02:07]} 17. Bg5 {[%clk 0:02:26]}  e4 {[%clk 0:01:55]} 18. Bxf6 {[%clk 0:02:23]}  Bxf6 {[%clk 0:01:56]} 19. Nd4 {[%clk 0:02:23]}  O-O {[%clk 0:01:52]} 20. Qb3 {[%clk 0:02:18]}  Qd6 {[%clk 0:01:43]} 21. Nd2 {[%clk 0:02:17]}  Kh8 {[%clk 0:01:42]} 22. Rad1 {[%clk 0:02:14]}  Bg4 {[%clk 0:01:34]} 23. f3 {[%clk 0:02:08]}  Bh5 {[%clk 0:01:27]} 24. g4 {[%clk 0:01:36]}  e3 {[%clk 0:01:22]} 25. gxh5 {[%clk 0:01:31]}  Bxd4 {[%clk 0:01:21]} 26. Ne4 {[%clk 0:01:08]}  e2+ {[%clk 0:01:16]} 27. Rxd4 {[%clk 0:01:06]}  exf1=Q+ {[%clk 0:01:14]} 28. Kxf1 {[%clk 0:01:06]}  Qxh2 {[%clk 0:01:10]} 29. Nf2 {[%clk 0:00:59]}  Rxf3 {[%clk 0:01:05]} 30. Rd2 {[%clk 0:00:55]}  Raf8 {[%clk 0:01:02]} 31. Qa2 {[%clk 0:00:42]}  Rxf2+ {[%clk 0:00:51]} 32. Rxf2 {[%clk 0:00:40]}  Qh1+ {[%clk 0:00:50]} 33. Ke2 {[%clk 0:00:38]}  Rxf2+ {[%clk 0:00:51]} 34. Kxf2 {[%clk 0:00:37]}  Qh2+ {[%clk 0:00:52]} 35. Ke3 {[%clk 0:00:37]}  Qxa2 {[%clk 0:00:52]} 0-1


[Site "https://www.chess.com"]